Workbook

Sheet Aggregate Planning
C2: Demand Forecast | F2: Costs
C4: Month | D4: Demand Forecast | F4: Item | G4: Cost
C5: January | D5: 1600 | F5: Materials cost/unit | G5: 10
C6: February | D6: 3000 | F6: Inventory holding cost/unit/month | G6: 2
C7: March | D7: 3200 | F7: Marginal cost of stockout/unit/month | G7: 5
C8: April | D8: 3800 | F8: Hiring and training cost/worker | G8: 300
C9: May | D9: 2200 | F9: Layoff cost/worker | G9: 500
C10: June | D10: 2200 | F10: Labor hours required/unit | G10: 4
F11: Regular time cost/hour | G11: 4
F12: Over time cost/hour | G12: 6
F13: Subcontracting cost/unit | G13: 30
B15: Aggregate Plan Decision Variables | N15: Constraints
C16: Ht | D16: Lt | E16: Wt | F16: Ot | G16: It | H16: St | I16: Ct | J16: Pt
B17: Period | C17: # Hired | D17: # Laid off | E17: # Workforce | F17: Overtime | G17: Inventory | H17: Stockout | I17: Subcontract | J17: Production | K17: Demand | L17: Price | N17: Workforce | O17: Capacity | P17: Inventory | Q17: Overtime
B18: 0 | C18: 0 | D18: 0 | E18: 80 | F18: 0 | G18: 1000 | H18: 0 | I18: 0
B19: 1 | C19: 0 | D19: 16 | E19: 64 | F19: 0 | G19: 1960 | H19: 0 | I19: 0 | J19: 2560 | K19: =D5 -> 1600 | L19: 40 | N19: =E19-E18-C19+D19 -> 1.421085472e-14 | O19: =40*E19+F19/4-J19 -> 0 | P19: =G18-H18+J19+I19-K19-G19+H19 -> -9.094947018e-13 | Q19: =10*E19-F19 -> 640
B20: 2 | C20: 0 | D20: 0 | E20: 64 | F20: 0 | G20: 1520 | H20: 0 | I20: 0 | J20: 2560 | K20: =D6 -> 3000 | L20: 40 | N20: =E20-E19-C20+D20 -> -3.552713679e-14 | O20: =40*E20+F20/4-J20 -> 0 | P20: =G19-H19+J20+I20-K20-G20+H20 -> -9.094947018e-13 | Q20: =10*E20-F20 -> 640
B21: 3 | C21: 0 | D21: 0 | E21: 64 | F21: 0 | G21: 880 | H21: 0 | I21: 0 | J21: 2560 | K21: 3200 | L21: 40 | N21: 0 | O21: 0 | P21: 6.821210263e-13 | Q21: 640
B22: 4 | C22: 0 | D22: 0 | E22: 64 | F22: 0 | G22: 0 | H22: 220 | I22: 140 | J22: 2560 | K22: 3800 | L22: 40 | N22: 0 | O22: 0 | P22: 3.126388037e-13 | Q22: 640
B23: 5 | C23: 0 | D23: 0 | E23: 64 | F23: 0 | G23: 140 | H23: 0 | I23: 0 | J23: 2560 | K23: 2200 | L23: 40 | N23: 1.421085472e-14 | O23: 0 | P23: -1.421085472e-13 | Q23: 640
B24: 6 | C24: 0 | D24: 0 | E24: 64 | F24: 0 | G24: 500 | H24: 0 | I24: 0 | J24: 2560 | K24: 2200 | L24: 40 | N24: =E24-E23-C24+D24 -> 0 | O24: 0 | P24: 0 | Q24: 640
F25: =AVERAGE(F18:F24) -> 0 | G25: =AVERAGE(G18:G24) -> 857.1428571 | H25: =AVERAGE(H18:H24) -> 31.42857143 | I25: =AVERAGE(I18:I24) -> 20
B26: Aggregate Plan Costs
B28: Period | C28: Hiring | D28: Lay off | E28: Regular time | F28: Overtime | G28: Inventory | H28: Stockout | I28: Subcontract | J28: Production
B29: 1 | C29: =$G$8*C19 -> 0 | D29: =D19*$G$9 -> 8000 | E29: =E19*$G$11*8*20 -> 40960 | F29: =F19*$G$12 -> 0 | G29: =G19*$G$6 -> 3920 | H29: =H19*$G$7 -> 0 | I29: =I19*$G$13 -> 0 | J29: =J19*$G$5 -> 25600
B30: 2 | C30: =$G$8*C20 -> 0 | D30: =D20*$G$9 -> 0 | E30: =E20*$G$11*8*20 -> 40960 | F30: =F20*$G$12 -> 0 | G30: =G20*$G$6 -> 3040 | H30: =H20*$G$7 -> 0 | I30: =I20*$G$13 -> 0 | J30: =J20*$G$5 -> 25600
B31: 3 | C31: 0 | D31: 0 | E31: 40960 | F31: 0 | G31: 1760 | H31: 0 | I31: 0 | J31: 25600
B32: 4 | C32: 0 | D32: 0 | E32: 40960 | F32: 0 | G32: 0 | H32: 1100 | I32: 4200 | J32: 25600
B33: 5 | C33: 0 | D33: 0 | E33: 40960 | F33: 0 | G33: 280 | H33: 0 | I33: 0 | J33: 25600
B34: 6 | C34: 0 | D34: 0 | E34: 40960 | F34: 0 | G34: 1000 | H34: 0 | I34: 0 | J34: 25600
B36: Total Cost = | D36: =+SUM(C29:J34) -> 422660
B38: Total Revenue = | D38: =SUMPRODUCT(K19:K24,L19:L24) -> 640000
B39: Profit = | D39: =D38-D36 -> 217340
B42: Seasonal Inventory = | E42: =(((G18+G24)/2)+SUM(G19:G23))/6 -> 875
B43: Average flow time = | E43: =E42/(SUM(K19:K24)/6) -> 0.328125 | F43: months
